[Event "Titled Tuesday Blitz April 4 Late 2023"]
[White "Papp, Levente"]
[Black "Bouget, Alexandre"]
[WhiteFideId "751243"]
[BlackFideId "681318"]
[WhiteElo "2380"]
[BlackElo "2182"]
[Result "1/2-1/2"]
[Round "03"]
[TimeControl "180+2"]
[Date "2023.04.04"]
[WhiteClock "0:00:10"]
[BlackClock "0:01:35"]

1. b3 {[%clk 0:02:57]}  e5 {[%clk 0:02:58]} 2. Bb2 {[%clk 0:02:57]}  d6 {[%clk 0:02:58]} 3. Nf3 {[%clk 0:02:55]}  g6 {[%clk 0:02:58]} 4. d4 {[%clk 0:02:54]}  Bg7 {[%clk 0:02:59]} 5. dxe5 {[%clk 0:02:54]}  Nc6 {[%clk 0:02:59]} 6. c4 {[%clk 0:02:50]}  Nxe5 {[%clk 0:02:54]} 7. Nxe5 {[%clk 0:02:50]}  Bxe5 {[%clk 0:02:55]} 8. Bxe5 {[%clk 0:02:50]}  dxe5 {[%clk 0:02:56]} 9. Qxd8+ {[%clk 0:02:39]}  Kxd8 {[%clk 0:02:57]} 10. Nc3 {[%clk 0:02:37]}  c6 {[%clk 0:02:57]} 11. c5 {[%clk 0:02:30]}  Be6 {[%clk 0:02:54]} 12. O-O-O+ {[%clk 0:02:25]}  Kc7 {[%clk 0:02:54]} 13. Ne4 {[%clk 0:02:26]}  Ne7 {[%clk 0:02:51]} 14. Nd6 {[%clk 0:02:25]}  Nf5 {[%clk 0:02:46]} 15. Nxf5 {[%clk 0:02:06]}  Bxf5 {[%clk 0:02:44]} 16. e3 {[%clk 0:02:07]}  Rad8 {[%clk 0:02:40]} 17. Bc4 {[%clk 0:02:07]}  f6 {[%clk 0:02:37]} 18. b4 {[%clk 0:02:03]}  Rxd1+ {[%clk 0:02:31]} 19. Rxd1 {[%clk 0:02:03]}  Rd8 {[%clk 0:02:30]} 20. Rxd8 {[%clk 0:02:03]}  Kxd8 {[%clk 0:02:31]} 21. f4 {[%clk 0:01:49]}  Ke7 {[%clk 0:02:29]} 22. h3 {[%clk 0:01:44]}  Be6 {[%clk 0:02:29]} 23. Bxe6 {[%clk 0:01:23]}  Kxe6 {[%clk 0:02:30]} 24. Kd2 {[%clk 0:01:24]}  Kf5 {[%clk 0:02:24]} 25. fxe5 {[%clk 0:01:15]}  Kxe5 {[%clk 0:02:20]} 26. Kd3 {[%clk 0:00:59]}  Ke6 {[%clk 0:02:20]} 27. Kd4 {[%clk 0:00:51]}  Kf5 {[%clk 0:02:17]} 28. a4 {[%clk 0:00:40]}  h5 {[%clk 0:02:13]} 29. g3 {[%clk 0:00:33]}  g5 {[%clk 0:02:12]} 30. a5 {[%clk 0:00:21]}  a6 {[%clk 0:01:53]} 31. e4+ {[%clk 0:00:11]}  Ke6 {[%clk 0:01:53]} 32. g4 {[%clk 0:00:11]}  h4 {[%clk 0:01:49]} 33. Kd3 {[%clk 0:00:11]}  Ke5 {[%clk 0:01:43]} 34. Ke3 {[%clk 0:00:11]}  Ke6 {[%clk 0:01:43]} 35. Kd4 {[%clk 0:00:11]}  Kf7 {[%clk 0:01:38]} 36. Kd3 {[%clk 0:00:08]}  Ke7 {[%clk 0:01:36]} 37. Kd4 {[%clk 0:00:09]}  Ke6 {[%clk 0:01:36]} 38. Kd3 {[%clk 0:00:09]}  Ke5 {[%clk 0:01:34]} 39. Ke3 {[%clk 0:00:09]}  Ke6 {[%clk 0:01:35]} 40. Kd3 {[%clk 0:00:10]} 1/2-1/2


[Site "https://www.chess.com"]

[Event "Titled Tuesday Blitz April 4 Late 2023"]
[White "Kleiman, Jake"]
[Black "Hajiyev, Kanan"]
[WhiteFideId "2020041"]
[BlackFideId "13404148"]
[WhiteElo "2619"]
[BlackElo "2103"]
[Result "1-0"]
[Round "03"]
[TimeControl "180+2"]
[Date "2023.04.04"]
[WhiteClock "0:01:34"]
[BlackClock "0:00:03"]

1. e4 {[%clk 0:03:00]}  c5 {[%clk 0:02:48]} 2. c3 {[%clk 0:03:00]}  d5 {[%clk 0:02:44]} 3. exd5 {[%clk 0:03:01]}  Nf6 {[%clk 0:02:38]} 4. d4 {[%clk 0:03:01]}  cxd4 {[%clk 0:02:36]} 5. Nf3 {[%clk 0:03:01]}  Nxd5 {[%clk 0:02:19]} 6. Nxd4 {[%clk 0:03:00]}  e6 {[%clk 0:02:04]} 7. Bd3 {[%clk 0:02:59]}  Be7 {[%clk 0:02:00]} 8. O-O {[%clk 0:03:00]}  O-O {[%clk 0:01:57]} 9. Nd2 {[%clk 0:02:58]}  Nc6 {[%clk 0:01:50]} 10. N2f3 {[%clk 0:02:58]}  Nxd4 {[%clk 0:01:47]} 11. Nxd4 {[%clk 0:02:59]}  Qb6 {[%clk 0:01:33]} 12. Qe2 {[%clk 0:02:55]}  Bf6 {[%clk 0:01:27]} 13. Qe4 {[%clk 0:02:49]}  g6 {[%clk 0:01:27]} 14. Bh6 {[%clk 0:02:49]}  Rd8 {[%clk 0:01:16]} 15. Rab1 {[%clk 0:02:49]}  e5 {[%clk 0:01:10]} 16. Nb3 {[%clk 0:02:36]}  Bf5 {[%clk 0:01:09]} 17. Qf3 {[%clk 0:02:36]}  Bxd3 {[%clk 0:00:54]} 18. Qxd3 {[%clk 0:02:37]}  Rac8 {[%clk 0:00:36]} 19. Qf3 {[%clk 0:02:29]}  Qe6 {[%clk 0:00:29]} 20. Rfe1 {[%clk 0:02:29]}  Qf5 {[%clk 0:00:21]} 21. Nd2 {[%clk 0:02:26]}  Qxf3 {[%clk 0:00:21]} 22. Nxf3 {[%clk 0:02:26]}  Re8 {[%clk 0:00:20]} 23. Rbd1 {[%clk 0:02:26]}  Nb6 {[%clk 0:00:19]} 24. Nd2 {[%clk 0:02:23]}  Bg7 {[%clk 0:00:15]} 25. Bxg7 {[%clk 0:02:20]}  Kxg7 {[%clk 0:00:16]} 26. Ne4 {[%clk 0:02:21]}  Re7 {[%clk 0:00:12]} 27. Nd6 {[%clk 0:02:19]}  Rc6 {[%clk 0:00:12]} 28. f4 {[%clk 0:02:16]}  Nc4 {[%clk 0:00:08]} 29. Nxc4 {[%clk 0:02:14]}  Rxc4 {[%clk 0:00:09]} 30. Rxe5 {[%clk 0:02:13]}  Rxe5 {[%clk 0:00:09]} 31. fxe5 {[%clk 0:02:13]}  Re4 {[%clk 0:00:05]} 32. Rd7 {[%clk 0:02:12]}  b5 {[%clk 0:00:04]} 33. Rxa7 {[%clk 0:02:10]}  Rxe5 {[%clk 0:00:04]} 34. Kf2 {[%clk 0:02:10]}  h5 {[%clk 0:00:04]} 35. a4 {[%clk 0:02:05]}  Rf5+ {[%clk 0:00:05]} 36. Ke2 {[%clk 0:02:04]}  bxa4 {[%clk 0:00:05]} 37. Rxa4 {[%clk 0:02:04]}  Rg5 {[%clk 0:00:06]} 38. g3 {[%clk 0:02:03]}  Re5+ {[%clk 0:00:06]} 39. Kd2 {[%clk 0:02:02]}  f5 {[%clk 0:00:07]} 40. Rd4 {[%clk 0:02:01]}  g5 {[%clk 0:00:07]} 41. b4 {[%clk 0:02:01]}  Rb5 {[%clk 0:00:07]} 42. Kd3 {[%clk 0:01:59]}  Kf6 {[%clk 0:00:08]} 43. Kc4 {[%clk 0:02:00]}  Rb8 {[%clk 0:00:07]} 44. b5 {[%clk 0:01:59]}  Ke5 {[%clk 0:00:08]} 45. Kc5 {[%clk 0:01:50]}  f4 {[%clk 0:00:09]} 46. gxf4+ {[%clk 0:01:50]}  gxf4 {[%clk 0:00:09]} 47. b6 {[%clk 0:01:50]}  Rc8+ {[%clk 0:00:09]} 48. Kb4 {[%clk 0:01:50]}  f3 {[%clk 0:00:07]} 49. Rd1 {[%clk 0:01:47]}  Ke4 {[%clk 0:00:07]} 50. c4 {[%clk 0:01:46]}  Ke3 {[%clk 0:00:06]} 51. c5 {[%clk 0:01:47]}  f2 {[%clk 0:00:07]} 52. b7 {[%clk 0:01:46]}  Rb8 {[%clk 0:00:04]} 53. c6 {[%clk 0:01:46]}  Ke2 {[%clk 0:00:04]} 54. Ra1 {[%clk 0:01:46]}  Rg8 {[%clk 0:00:02]} 55. c7 {[%clk 0:01:43]}  Rg4+ {[%clk 0:00:03]} 56. Kc3 {[%clk 0:01:40]}  Rg1 {[%clk 0:00:03]} 57. c8=Q {[%clk 0:01:35]}  Rc1+ {[%clk 0:00:03]} 58. Rxc1 {[%clk 0:01:34]} 1-0


[Site "https://www.chess.com"]

[Event "Titled Tuesday Blitz April 4 Late 2023"]
[White "Liu, Casper"]
[Black "Vlassov, Nikolai"]
[WhiteFideId "1454153"]
[BlackFideId "4103360"]
[WhiteElo "2221"]
[BlackElo "2324"]
[Result "0-1"]
[Round "03"]
[TimeControl "180+2"]
[Date "2023.04.04"]
[WhiteClock "0:00:16"]
[BlackClock "0:00:10"]

1. e4 {[%clk 0:03:00]}  Nc6 {[%clk 0:02:27]} 2. Nf3 {[%clk 0:02:58]}  d5 {[%clk 0:02:26]} 3. exd5 {[%clk 0:02:57]}  Qxd5 {[%clk 0:02:26]} 4. Nc3 {[%clk 0:02:57]}  Qa5 {[%clk 0:02:26]} 5. d4 {[%clk 0:02:57]}  Bg4 {[%clk 0:02:26]} 6. Be2 {[%clk 0:02:51]}  O-O-O {[%clk 0:02:26]} 7. d5 {[%clk 0:02:48]}  e6 {[%clk 0:02:10]} 8. Ng5 {[%clk 0:02:48]}  Rxd5 {[%clk 0:02:06]} 9. Qxd5 {[%clk 0:02:41]}  exd5 {[%clk 0:02:06]} 10. Bxg4+ {[%clk 0:02:42]}  Kb8 {[%clk 0:02:06]} 11. Nxf7 {[%clk 0:02:40]}  Nf6 {[%clk 0:02:03]} 12. Be2 {[%clk 0:02:32]}  d4 {[%clk 0:02:01]} 13. Nxh8 {[%clk 0:02:32]}  dxc3 {[%clk 0:02:01]} 14. O-O {[%clk 0:02:32]}  Qd5 {[%clk 0:01:55]} 15. Bf3 {[%clk 0:02:08]}  Qg8 {[%clk 0:01:53]} 16. bxc3 {[%clk 0:02:09]}  Qxh8 {[%clk 0:01:52]} 17. Rb1 {[%clk 0:02:06]}  Kc8 {[%clk 0:01:52]} 18. Bg5 {[%clk 0:02:04]}  Bc5 {[%clk 0:01:49]} 19. Rfe1 {[%clk 0:01:56]}  Qg8 {[%clk 0:01:45]} 20. h3 {[%clk 0:01:52]}  Bb6 {[%clk 0:01:33]} 21. Rbd1 {[%clk 0:01:50]}  Ba5 {[%clk 0:01:16]} 22. Bxf6 {[%clk 0:01:50]}  gxf6 {[%clk 0:01:16]} 23. Bg4+ {[%clk 0:01:46]}  Kb8 {[%clk 0:01:14]} 24. Be6 {[%clk 0:01:31]}  Qf8 {[%clk 0:01:10]} 25. Re3 {[%clk 0:01:25]}  a6 {[%clk 0:01:07]} 26. Rd7 {[%clk 0:01:19]}  Ka7 {[%clk 0:01:04]} 27. Rxh7 {[%clk 0:01:19]}  Qc5 {[%clk 0:01:00]} 28. Rh4 {[%clk 0:01:17]}  Ne5 {[%clk 0:00:58]} 29. c4 {[%clk 0:01:06]}  Bb6 {[%clk 0:00:55]} 30. Re2 {[%clk 0:01:05]}  Qa3 {[%clk 0:00:50]} 31. Rhe4 {[%clk 0:01:02]}  Qxa2 {[%clk 0:00:42]} 32. h4 {[%clk 0:01:02]}  Qb1+ {[%clk 0:00:36]} 33. Kh2 {[%clk 0:01:02]}  Qc1 {[%clk 0:00:35]} 34. h5 {[%clk 0:01:00]}  a5 {[%clk 0:00:34]} 35. f4 {[%clk 0:00:59]}  Nc6 {[%clk 0:00:31]} 36. h6 {[%clk 0:00:58]}  f5 {[%clk 0:00:24]} 37. Bxf5 {[%clk 0:00:44]}  Bd4 {[%clk 0:00:20]} 38. Bd7 {[%clk 0:00:36]}  Qg1+ {[%clk 0:00:17]} 39. Kg3 {[%clk 0:00:36]}  Bb2 {[%clk 0:00:12]} 40. h7 {[%clk 0:00:27]}  Qc5 {[%clk 0:00:05]} 41. Bxc6 {[%clk 0:00:19]}  Qxc6 {[%clk 0:00:04]} 42. Re8 {[%clk 0:00:15]}  Qg6+ {[%clk 0:00:04]} 43. Kf3 {[%clk 0:00:14]}  Qxh7 {[%clk 0:00:05]} 44. c3 {[%clk 0:00:13]}  Qh5+ {[%clk 0:00:05]} 45. g4 {[%clk 0:00:11]}  Qh3+ {[%clk 0:00:05]} 46. Ke4 {[%clk 0:00:11]}  Qxg4 {[%clk 0:00:05]} 47. Rxb2 {[%clk 0:00:11]}  Qg6+ {[%clk 0:00:06]} 48. Kf3 {[%clk 0:00:11]}  Qxe8 {[%clk 0:00:07]} 49. Ra2 {[%clk 0:00:11]}  Qc6+ {[%clk 0:00:07]} 50. Kf2 {[%clk 0:00:11]}  b6 {[%clk 0:00:07]} 51. Ra3 {[%clk 0:00:12]}  Qxc4 {[%clk 0:00:08]} 52. f5 {[%clk 0:00:12]}  Qc5+ {[%clk 0:00:08]} 53. Kg3 {[%clk 0:00:13]}  Qxa3 {[%clk 0:00:09]} 54. f6 {[%clk 0:00:14]}  Qf8 {[%clk 0:00:09]} 55. f7 {[%clk 0:00:15]}  Qxf7 {[%clk 0:00:10]} 56. Kg4 {[%clk 0:00:16]}  Qc4+ {[%clk 0:00:10]} 0-1


[Site "https://www.chess.com"]

[Event "Titled Tuesday Blitz April 4 Late 2023"]
[White "Poliakova, Varvara"]
[Black "Marczuk, Dominik"]
[WhiteFideId "13518313"]
[BlackFideId "1111264"]
[WhiteElo "2075"]
[BlackElo "2174"]
[Result "0-1"]
[Round "03"]
[TimeControl "180+2"]
[Date "2023.04.04"]
[WhiteClock "0:01:32"]
[BlackClock "0:01:19"]

1. e4 {[%clk 0:03:00]}  c5 {[%clk 0:02:55]} 2. Nf3 {[%clk 0:03:00]}  d6 {[%clk 0:02:55]} 3. d4 {[%clk 0:03:00]}  cxd4 {[%clk 0:02:56]} 4. Nxd4 {[%clk 0:03:01]}  Nf6 {[%clk 0:02:56]} 5. Nc3 {[%clk 0:03:00]}  a6 {[%clk 0:02:57]} 6. h3 {[%clk 0:03:00]}  e5 {[%clk 0:02:57]} 7. Nde2 {[%clk 0:03:00]}  b5 {[%clk 0:02:57]} 8. g4 {[%clk 0:03:00]}  b4 {[%clk 0:02:57]} 9. Nd5 {[%clk 0:03:00]}  Nxd5 {[%clk 0:02:58]} 10. exd5 {[%clk 0:03:01]}  Be7 {[%clk 0:02:56]} 11. Bg2 {[%clk 0:03:00]}  O-O {[%clk 0:02:55]} 12. Ng3 {[%clk 0:02:59]}  Bg5 {[%clk 0:02:50]} 13. O-O {[%clk 0:02:57]}  Nd7 {[%clk 0:02:38]} 14. Nf5 {[%clk 0:02:52]}  Bxc1 {[%clk 0:02:32]} 15. Rxc1 {[%clk 0:02:53]}  Nc5 {[%clk 0:02:32]} 16. Qf3 {[%clk 0:02:52]}  Bxf5 {[%clk 0:02:25]} 17. Qxf5 {[%clk 0:02:52]}  g6 {[%clk 0:02:24]} 18. Qf3 {[%clk 0:02:43]}  f6 {[%clk 0:02:22]} 19. c3 {[%clk 0:02:34]}  a5 {[%clk 0:02:20]} 20. Qe3 {[%clk 0:02:29]}  b3 {[%clk 0:02:16]} 21. axb3 {[%clk 0:02:28]}  Nxb3 {[%clk 0:02:16]} 22. Rce1 {[%clk 0:02:28]}  a4 {[%clk 0:02:09]} 23. f4 {[%clk 0:02:27]}  Nc5 {[%clk 0:02:08]} 24. fxe5 {[%clk 0:02:27]}  fxe5 {[%clk 0:02:08]} 25. g5 {[%clk 0:02:15]}  Qe7 {[%clk 0:02:03]} 26. h4 {[%clk 0:02:15]}  Rxf1+ {[%clk 0:02:02]} 27. Rxf1 {[%clk 0:02:16]}  Rf8 {[%clk 0:02:03]} 28. Bh3 {[%clk 0:02:16]}  Rxf1+ {[%clk 0:02:01]} 29. Kxf1 {[%clk 0:02:17]}  Kg7 {[%clk 0:01:47]} 30. Ke2 {[%clk 0:02:16]}  Qb7 {[%clk 0:01:35]} 31. Qd2 {[%clk 0:02:06]}  Qb5+ {[%clk 0:01:28]} 32. Ke3 {[%clk 0:02:06]}  Qc4 {[%clk 0:01:23]} 33. h5 {[%clk 0:02:00]}  Qf4+ {[%clk 0:01:21]} 34. Ke2 {[%clk 0:02:00]}  Qh2+ {[%clk 0:01:21]} 35. Kd1 {[%clk 0:01:57]}  Qxh3 {[%clk 0:01:20]} 36. h6+ {[%clk 0:01:57]}  Kg8 {[%clk 0:01:18]} 37. Qe2 {[%clk 0:01:45]}  Qd3+ {[%clk 0:01:18]} 38. Qxd3 {[%clk 0:01:42]}  Nxd3 {[%clk 0:01:19]} 39. Kc2 {[%clk 0:01:41]}  Nc5 {[%clk 0:01:19]} 40. c4 {[%clk 0:01:41]}  Kf7 {[%clk 0:01:19]} 41. Kc3 {[%clk 0:01:36]}  Ke7 {[%clk 0:01:19]} 42. Kb4 {[%clk 0:01:35]}  Kd7 {[%clk 0:01:19]} 43. Kc3 {[%clk 0:01:32]}  Kc7 {[%clk 0:01:19]} 0-1


[Site "https://www.chess.com"]

[Event "Titled Tuesday Blitz April 4 Late 2023"]
[White "Janaszak, Dawid"]
[Black "Harriott, Tyrell"]
[WhiteFideId "1119206"]
[BlackFideId "2086484"]
[WhiteElo "2220"]
[BlackElo "2107"]
[Result "0-1"]
[Round "03"]
[TimeControl "180+2"]
[Date "2023.04.04"]
[WhiteClock "0:00:10"]
[BlackClock "0:00:07"]

1. e4 {[%clk 0:03:00]}  e6 {[%clk 0:03:00]} 2. d4 {[%clk 0:02:59]}  d5 {[%clk 0:03:01]} 3. Bd3 {[%clk 0:03:00]}  f5 {[%clk 0:03:01]} 4. exf5 {[%clk 0:02:58]}  exf5 {[%clk 0:03:02]} 5. Nf3 {[%clk 0:02:58]}  Nf6 {[%clk 0:03:02]} 6. O-O {[%clk 0:02:57]}  Bd6 {[%clk 0:03:03]} 7. Re1+ {[%clk 0:02:56]}  Ne4 {[%clk 0:03:03]} 8. Nc3 {[%clk 0:02:56]}  c6 {[%clk 0:03:03]} 9. Ne5 {[%clk 0:02:47]}  O-O {[%clk 0:02:52]} 10. f3 {[%clk 0:02:47]}  Ng5 {[%clk 0:02:18]} 11. Bf4 {[%clk 0:02:42]}  Ne6 {[%clk 0:02:18]} 12. Ne2 {[%clk 0:02:19]}  Nxf4 {[%clk 0:02:14]} 13. Nxf4 {[%clk 0:02:19]}  Qb6 {[%clk 0:02:14]} 14. Kh1 {[%clk 0:01:57]}  Qxd4 {[%clk 0:02:10]} 15. g3 {[%clk 0:01:22]}  Bxe5 {[%clk 0:02:06]} 16. c3 {[%clk 0:01:22]}  Qb6 {[%clk 0:01:59]} 17. Rxe5 {[%clk 0:01:22]}  Qxb2 {[%clk 0:01:58]} 18. Rb1 {[%clk 0:01:10]}  Qxc3 {[%clk 0:01:56]} 19. Qe2 {[%clk 0:01:10]}  Nd7 {[%clk 0:01:48]} 20. Re7 {[%clk 0:01:09]}  Nc5 {[%clk 0:01:45]} 21. Bc2 {[%clk 0:00:55]}  Bd7 {[%clk 0:01:29]} 22. Nh5 {[%clk 0:00:30]}  Rae8 {[%clk 0:01:19]} 23. Rf1 {[%clk 0:00:20]}  g6 {[%clk 0:00:52]} 24. Nf4 {[%clk 0:00:19]}  Qf6 {[%clk 0:00:48]} 25. Re3 {[%clk 0:00:16]}  d4 {[%clk 0:00:44]} 26. Qc4+ {[%clk 0:00:16]}  Ne6 {[%clk 0:00:20]} 27. Re2 {[%clk 0:00:16]}  Kg7 {[%clk 0:00:18]} 28. Nd3 {[%clk 0:00:16]}  Nc7 {[%clk 0:00:16]} 29. Ref2 {[%clk 0:00:15]}  Nd5 {[%clk 0:00:14]} 30. Bb3 {[%clk 0:00:15]}  Ne3 {[%clk 0:00:13]} 31. Qb4 {[%clk 0:00:15]}  Nxf1 {[%clk 0:00:12]} 32. Rxf1 {[%clk 0:00:16]}  b6 {[%clk 0:00:12]} 33. f4 {[%clk 0:00:16]}  c5 {[%clk 0:00:12]} 34. Qd2 {[%clk 0:00:16]}  Bc6+ {[%clk 0:00:12]} 35. Kg1 {[%clk 0:00:16]}  Qd6 {[%clk 0:00:12]} 36. Ne5 {[%clk 0:00:16]}  Bd5 {[%clk 0:00:11]} 37. Ba4 {[%clk 0:00:16]}  Rxe5 {[%clk 0:00:09]} 38. fxe5 {[%clk 0:00:16]}  Qxe5 {[%clk 0:00:10]} 39. Re1 {[%clk 0:00:16]}  Qf6 {[%clk 0:00:09]} 40. Qe2 {[%clk 0:00:16]}  Rf7 {[%clk 0:00:08]} 41. h4 {[%clk 0:00:16]}  c4 {[%clk 0:00:09]} 42. Qf2 {[%clk 0:00:15]}  d3 {[%clk 0:00:09]} 43. Bd1 {[%clk 0:00:14]}  Be4 {[%clk 0:00:09]} 44. h5 {[%clk 0:00:14]}  Rd7 {[%clk 0:00:08]} 45. Qf4 {[%clk 0:00:14]}  Qd6 {[%clk 0:00:08]} 46. h6+ {[%clk 0:00:13]}  Kg8 {[%clk 0:00:08]} 47. Qg5 {[%clk 0:00:14]}  Kf7 {[%clk 0:00:07]} 48. Ba4 {[%clk 0:00:13]}  Re7 {[%clk 0:00:06]} 49. Rf1 {[%clk 0:00:13]}  Qf6 {[%clk 0:00:06]} 50. Qf4 {[%clk 0:00:12]}  Qe5 {[%clk 0:00:06]} 51. Qg5 {[%clk 0:00:12]}  Re6 {[%clk 0:00:06]} 52. Bd7 {[%clk 0:00:12]}  Re7 {[%clk 0:00:06]} 53. Ba4 {[%clk 0:00:12]}  Qf6 {[%clk 0:00:06]} 54. Qf4 {[%clk 0:00:12]}  c3 {[%clk 0:00:06]} 55. Bb3+ {[%clk 0:00:12]}  Kf8 {[%clk 0:00:06]} 56. Qb8+ {[%clk 0:00:12]}  Re8 {[%clk 0:00:06]} 57. Qc7 {[%clk 0:00:13]}  Qe7 {[%clk 0:00:06]} 58. Qxc3 {[%clk 0:00:13]}  Qc5+ {[%clk 0:00:06]} 59. Qxc5+ {[%clk 0:00:13]}  bxc5 {[%clk 0:00:07]} 60. Rc1 {[%clk 0:00:13]}  Ke7 {[%clk 0:00:07]} 61. Rxc5 {[%clk 0:00:13]}  Rd8 {[%clk 0:00:07]} 62. Bd1 {[%clk 0:00:12]}  Kf6 {[%clk 0:00:08]} 63. g4 {[%clk 0:00:11]}  Kg5 {[%clk 0:00:07]} 64. gxf5 {[%clk 0:00:12]}  gxf5 {[%clk 0:00:08]} 65. Kf2 {[%clk 0:00:12]}  Kf4 {[%clk 0:00:08]} 66. Rc7 {[%clk 0:00:11]}  Rd6 {[%clk 0:00:08]} 67. Rxh7 {[%clk 0:00:11]}  d2 {[%clk 0:00:08]} 68. Rh8 {[%clk 0:00:11]}  Kg5 {[%clk 0:00:07]} 69. h7 {[%clk 0:00:11]}  Kg6 {[%clk 0:00:07]} 70. Rd8 {[%clk 0:00:10]}  Rxd8 {[%clk 0:00:07]} 0-1


[Site "https://www.chess.com"]

[Event "Titled Tuesday Blitz April 4 Late 2023"]
[White "Jocev, Milan"]
[Black "Melikhov, Evgeny V."]
[WhiteFideId "900680"]
[BlackFideId "4122046"]
[WhiteElo "2304"]
[BlackElo "2158"]
[Result "1/2-1/2"]
[Round "03"]
[TimeControl "180+2"]
[Date "2023.04.04"]
[WhiteClock "0:01:06"]
[BlackClock "0:00:24"]

1. c3 {[%clk 0:03:00]}  d5 {[%clk 0:02:58]} 2. d4 {[%clk 0:03:00]}  c5 {[%clk 0:02:56]} 3. Nf3 {[%clk 0:02:58]}  e6 {[%clk 0:02:53]} 4. g3 {[%clk 0:02:58]}  Nc6 {[%clk 0:02:52]} 5. Bg2 {[%clk 0:02:58]}  Nf6 {[%clk 0:02:50]} 6. O-O {[%clk 0:02:59]}  Be7 {[%clk 0:02:45]} 7. dxc5 {[%clk 0:02:59]}  Bxc5 {[%clk 0:02:45]} 8. b4 {[%clk 0:03:00]}  Bd6 {[%clk 0:02:37]} 9. Bb2 {[%clk 0:03:00]}  O-O {[%clk 0:02:35]} 10. a3 {[%clk 0:03:01]}  a6 {[%clk 0:02:26]} 11. Nbd2 {[%clk 0:03:00]}  b5 {[%clk 0:02:25]} 12. a4 {[%clk 0:03:00]}  Bd7 {[%clk 0:02:16]} 13. axb5 {[%clk 0:02:58]}  axb5 {[%clk 0:02:16]} 14. Nb3 {[%clk 0:02:56]}  Ne5 {[%clk 0:01:59]} 15. Nxe5 {[%clk 0:02:52]}  Bxe5 {[%clk 0:01:59]} 16. Nc5 {[%clk 0:02:50]}  Bc6 {[%clk 0:01:53]} 17. Qd2 {[%clk 0:02:49]}  Qb6 {[%clk 0:01:45]} 18. e3 {[%clk 0:02:28]}  h6 {[%clk 0:01:16]} 19. h3 {[%clk 0:02:20]}  Rxa1 {[%clk 0:01:12]} 20. Rxa1 {[%clk 0:02:20]}  Ra8 {[%clk 0:01:12]} 21. Rxa8+ {[%clk 0:02:17]}  Bxa8 {[%clk 0:01:12]} 22. Qc1 {[%clk 0:02:06]}  Qa7 {[%clk 0:01:02]} 23. Nb3 {[%clk 0:02:03]}  Ne4 {[%clk 0:00:53]} 24. Nd4 {[%clk 0:02:02]}  Qa4 {[%clk 0:00:42]} 25. Bf1 {[%clk 0:01:57]}  Nd6 {[%clk 0:00:39]} 26. Nf3 {[%clk 0:01:41]}  Bf6 {[%clk 0:00:38]} 27. Bd3 {[%clk 0:01:37]}  Nc4 {[%clk 0:00:37]} 28. Nd4 {[%clk 0:01:15]}  Qa2 {[%clk 0:00:30]} 29. Ba1 {[%clk 0:01:11]}  Qa6 {[%clk 0:00:26]} 30. Bb2 {[%clk 0:01:07]}  Qa2 {[%clk 0:00:25]} 31. Ba1 {[%clk 0:01:06]}  Qa6 {[%clk 0:00:25]} 32. Bb2 {[%clk 0:01:06]}  Qa2 {[%clk 0:00:24]} 1/2-1/2


[Site "https://www.chess.com"]

[Event "Titled Tuesday Blitz April 4 Late 2023"]
[White "Ambartsumova, Karina"]
[Black "Goncalves, Davi Sulzbacher"]
[WhiteFideId "4166299"]
[BlackFideId "2154510"]
[WhiteElo "2240"]
[BlackElo "2182"]
[Result "0-1"]
[Round "03"]
[TimeControl "180+2"]
[Date "2023.04.04"]
[WhiteClock "0:00:10"]
[BlackClock "0:00:05"]

1. e4 {[%clk 0:02:59]}  c6 {[%clk 0:02:55]} 2. Ne2 {[%clk 0:02:58]}  d5 {[%clk 0:02:55]} 3. e5 {[%clk 0:02:59]}  c5 {[%clk 0:02:53]} 4. d4 {[%clk 0:02:58]}  cxd4 {[%clk 0:02:53]} 5. Nxd4 {[%clk 0:02:59]}  Nc6 {[%clk 0:02:53]} 6. Bf4 {[%clk 0:02:43]}  Qb6 {[%clk 0:02:46]} 7. Nb3 {[%clk 0:02:19]}  Bf5 {[%clk 0:02:40]} 8. c3 {[%clk 0:02:16]}  e6 {[%clk 0:02:38]} 9. Be2 {[%clk 0:02:09]}  a5 {[%clk 0:02:35]} 10. a4 {[%clk 0:02:03]}  Nge7 {[%clk 0:02:31]} 11. N1d2 {[%clk 0:02:03]}  Ng6 {[%clk 0:02:29]} 12. Bg3 {[%clk 0:02:03]}  Ngxe5 {[%clk 0:02:27]} 13. O-O {[%clk 0:01:59]}  Be7 {[%clk 0:02:23]} 14. Nd4 {[%clk 0:01:44]}  Nxd4 {[%clk 0:02:16]} 15. cxd4 {[%clk 0:01:45]}  Qxd4 {[%clk 0:02:08]} 16. Bxe5 {[%clk 0:01:27]}  Qxe5 {[%clk 0:02:09]} 17. Nf3 {[%clk 0:01:24]}  Qxb2 {[%clk 0:01:59]} 18. Bb5+ {[%clk 0:01:24]}  Kf8 {[%clk 0:01:59]} 19. Rc1 {[%clk 0:01:25]}  Bd6 {[%clk 0:01:46]} 20. Nd4 {[%clk 0:01:11]}  Be4 {[%clk 0:01:39]} 21. f3 {[%clk 0:00:51]}  Bg6 {[%clk 0:01:29]} 22. Rf2 {[%clk 0:00:52]}  Qa3 {[%clk 0:01:24]} 23. Kh1 {[%clk 0:00:48]}  h6 {[%clk 0:01:19]} 24. f4 {[%clk 0:00:38]}  Qe3 {[%clk 0:00:45]} 25. Rf3 {[%clk 0:00:35]}  Qe4 {[%clk 0:00:45]} 26. Qd2 {[%clk 0:00:28]}  Kg8 {[%clk 0:00:29]} 27. Qf2 {[%clk 0:00:17]}  Bh5 {[%clk 0:00:18]} 28. Re1 {[%clk 0:00:15]}  Bxf3 {[%clk 0:00:17]} 29. Rxe4 {[%clk 0:00:16]}  Bxe4 {[%clk 0:00:18]} 30. f5 {[%clk 0:00:16]}  Bc5 {[%clk 0:00:15]} 31. fxe6 {[%clk 0:00:15]}  fxe6 {[%clk 0:00:15]} 32. Bd7 {[%clk 0:00:14]}  Rf8 {[%clk 0:00:09]} 33. Bxe6+ {[%clk 0:00:09]}  Kh7 {[%clk 0:00:09]} 34. Qe2 {[%clk 0:00:08]}  Bxd4 {[%clk 0:00:08]} 35. h3 {[%clk 0:00:09]}  Rf6 {[%clk 0:00:07]} 36. Bg4 {[%clk 0:00:08]}  Rhf8 {[%clk 0:00:08]} 37. Kh2 {[%clk 0:00:07]}  Be5+ {[%clk 0:00:07]} 38. Kg1 {[%clk 0:00:08]}  Rf1+ {[%clk 0:00:07]} 39. Qxf1 {[%clk 0:00:08]}  Rxf1+ {[%clk 0:00:07]} 40. Kxf1 {[%clk 0:00:09]}  Bc2 {[%clk 0:00:07]} 41. Bd7 {[%clk 0:00:10]}  d4 {[%clk 0:00:07]} 42. Ke2 {[%clk 0:00:10]}  Bf4 {[%clk 0:00:07]} 43. Kf3 {[%clk 0:00:10]}  Bc1 {[%clk 0:00:05]} 44. Bb5 {[%clk 0:00:10]}  Kg8 {[%clk 0:00:05]} 45. Bd3 {[%clk 0:00:10]}  Bxd3 {[%clk 0:00:05]} 0-1


[Site "https://www.chess.com"]